[Event "*** Titled Tuesday Blitz"]
[Site "Chess.com"]
[Date "2020.05.12"]
[Round "6"]
[White "Gareth-Bale11"]
[Black "IriBu"]
[Result "1-0"]
[WhiteElo "2725"]
[BlackElo "2547"]
[TimeControl "180+1"]
[EndTime "11:07:07 PDT"]
[Termination "Gareth-Bale11 won by resignation"]

1. d4 {[%clk 0:02:58.8]} 1... Nf6 {[%clk 0:02:59.3]} 2. c4 {[%clk 0:02:56.6]}
2... g6 {[%clk 0:02:58.3]} 3. Nc3 {[%clk 0:02:55.9]} 3... Bg7 {[%clk 0:02:58.8]}
4. e4 {[%clk 0:02:55.5]} 4... O-O {[%clk 0:02:59.3]} 5. Be2 {[%clk 0:02:55.7]}
5... d6 {[%clk 0:02:59.3]} 6. Be3 {[%clk 0:02:55.5]} 6... e5 {[%clk 0:02:55.4]}
7. d5 {[%clk 0:02:55.4]} 7... a5 {[%clk 0:02:54.8]} 8. g4 {[%clk 0:02:52.6]}
8... Na6 {[%clk 0:02:51.5]} 9. h4 {[%clk 0:02:51.3]} 9... Nd7 {[%clk 0:02:50.7]}
10. Nf3 {[%clk 0:02:47]} 10... Ndc5 {[%clk 0:02:49.5]} 11. Nd2 {[%clk
0:02:45.5]} 11... f5 {[%clk 0:02:34.7]} 12. f3 {[%clk 0:02:37.5]} 12... fxg4
{[%clk 0:02:32.3]} 13. fxg4 {[%clk 0:02:35.7]} 13... Rf4 {[%clk 0:02:29.3]} 14.
a3 {[%clk 0:02:23.4]} 14... Bd7 {[%clk 0:02:28.2]} 15. Bxf4 {[%clk 0:02:15.2]}
15... exf4 {[%clk 0:02:27.4]} 16. Qc2 {[%clk 0:02:15.8]} 16... Qe7 {[%clk
0:02:08.3]} 17. g5 {[%clk 0:02:10.3]} 17... a4 {[%clk 0:02:04.7]} 18. Rf1 {[%clk
0:01:49.2]} 18... Rf8 {[%clk 0:01:45.1]} 19. O-O-O {[%clk 0:01:47.7]} 19... Bxc3
{[%clk 0:01:31.8]} 20. Qxc3 {[%clk 0:01:46.2]} 20... Nxe4 {[%clk 0:01:31.4]} 21.
Nxe4 {[%clk 0:01:46.7]} 21... Qxe4 {[%clk 0:01:31.6]} 22. Bd3 {[%clk 0:01:16.7]}
22... Qe3+ {[%clk 0:01:28.7]} 23. Qd2 {[%clk 0:01:16.1]} 23... Qxd2+ {[%clk
0:01:21.2]} 24. Kxd2 {[%clk 0:01:15.7]} 24... Nc5 {[%clk 0:01:22.1]} 25. Bc2
{[%clk 0:01:11.9]} 25... b5 {[%clk 0:01:17.5]} 26. cxb5 {[%clk 0:01:07.7]} 26...
Bxb5 {[%clk 0:01:16.3]} 27. Rf3 {[%clk 0:01:08.3]} 27... Bc4 {[%clk 0:01:14.9]}
28. Rdf1 {[%clk 0:01:04.9]} 28... Bxf1 {[%clk 0:01:14.3]} 29. Rxf1 {[%clk
0:01:04.3]} 29... f3 {[%clk 0:01:10.9]} 30. Ke3 {[%clk 0:01:04.1]} 30... Rb8
{[%clk 0:01:10.6]} 31. Rb1 {[%clk 0:01:01.8]} 31... Rf8 {[%clk 0:01:10.3]} 32.
Rf1 {[%clk 0:01:01.6]} 32... Kg7 {[%clk 0:01:09.5]} 33. Rxf3 {[%clk 0:01:01.5]}
33... Rb8 {[%clk 0:01:09.5]} 34. h5 {[%clk 0:00:44.8]} 34... gxh5 {[%clk
0:01:04.1]} 35. Rh3 {[%clk 0:00:39.3]} 35... Rxb2 {[%clk 0:01:03.7]} 36. Kd2
{[%clk 0:00:39.5]} 36... Ra2 {[%clk 0:00:56.8]} 37. Rxh5 {[%clk 0:00:36.2]}
37... Rxa3 {[%clk 0:00:46.6]} 38. Rxh7+ {[%clk 0:00:35]} 38... Kg8 {[%clk
0:00:47.2]} 39. Rxc7 {[%clk 0:00:35.5]} 39... Rg3 {[%clk 0:00:45.5]} 40. g6
{[%clk 0:00:25.5]} 40... a3 {[%clk 0:00:43]} 41. Ra7 {[%clk 0:00:25.3]} 41...
Rg2+ {[%clk 0:00:39]} 42. Kc3 {[%clk 0:00:25.2]} 42... Rg3+ {[%clk 0:00:35.5]}
43. Kc4 {[%clk 0:00:25.6]} 43... Rg4+ {[%clk 0:00:34.5]} 44. Kb5 {[%clk
0:00:25.2]} 44... Rg2 {[%clk 0:00:32.4]} 45. Bf5 {[%clk 0:00:22.8]} 45... a2
{[%clk 0:00:32.5]} 46. Kc6 {[%clk 0:00:21.5]} 46... Nb3 {[%clk 0:00:30.5]} 47.
Be6+ {[%clk 0:00:21.6]} 47... Kf8 {[%clk 0:00:30.1]} 48. g7+ {[%clk 0:00:14.5]}
48... Rxg7 {[%clk 0:00:28.6]} 49. Rxa2 {[%clk 0:00:14.7]} 49... Nd4+ {[%clk
0:00:26.4]} 50. Kxd6 {[%clk 0:00:14.8]} 50... Rg3 {[%clk 0:00:26.4]} 51. Ra8+
{[%clk 0:00:13.9]} 51... Kg7 {[%clk 0:00:25.6]} 52. Rg8+ {[%clk 0:00:14.5]}
52... Kf6 {[%clk 0:00:26.5]} 53. Rxg3 {[%clk 0:00:14.1]} 53... Nb5+ {[%clk
0:00:27.4]} 54. Kc5 {[%clk 0:00:14]} 54... Nc7 {[%clk 0:00:27.2]} 55. Rf3+
{[%clk 0:00:14.1]} 55... Ke5 {[%clk 0:00:26.4]} 56. Rf5+ {[%clk 0:00:14.4]}
56... Ke4 {[%clk 0:00:26.2]} 57. Rf7 {[%clk 0:00:15.3]} 57... Na6+ {[%clk
0:00:25.6]} 58. Kb6 {[%clk 0:00:15.2]} 58... Nb4 {[%clk 0:00:25.6]} 59. d6
{[%clk 0:00:15.6]} 59... Ke5 {[%clk 0:00:25.7]} 60. d7 {[%clk 0:00:15.9]} 60...
Kxe6 {[%clk 0:00:26]} 61. d8=Q {[%clk 0:00:15.8]} 61... Nd5+ {[%clk 0:00:26.9]}
62. Kc5 {[%clk 0:00:14.3]} 62... Kxf7 {[%clk 0:00:26.4]} 63. Qxd5+ {[%clk
0:00:13.9]} 1-0

[Event "*** Titled Tuesday Blitz"]
[Site "Chess.com"]
[Date "2020.05.12"]
[Round "6"]
[White "Nara_Kh"]
[Black "Sanyura"]
[Result "1-0"]
[WhiteElo "2321"]
[BlackElo "2485"]
[TimeControl "180+1"]
[EndTime "11:07:07 PDT"]
[Termination "Nara_Kh won on time"]

1. e4 {[%clk 0:03:00.9]} 1... c5 {[%clk 0:02:59.6]} 2. Nf3 {[%clk 0:03:00.5]}
2... e6 {[%clk 0:03:00.1]} 3. d4 {[%clk 0:02:59.9]} 3... cxd4 {[%clk 0:03:01]}
4. Nxd4 {[%clk 0:03:00]} 4... Nf6 {[%clk 0:02:59.4]} 5. Nc3 {[%clk 0:02:55.5]}
5... Nc6 {[%clk 0:02:58.8]} 6. Be3 {[%clk 0:02:33.9]} 6... Bb4 {[%clk 0:02:57]}
7. Nxc6 {[%clk 0:02:25.8]} 7... bxc6 {[%clk 0:02:56.5]} 8. e5 {[%clk 0:02:21.1]}
8... Nd5 {[%clk 0:02:55.8]} 9. Bd2 {[%clk 0:02:12.7]} 9... Qa5 {[%clk
0:02:51.2]} 10. Ne4 {[%clk 0:02:02.5]} 10... O-O {[%clk 0:02:48.6]} 11. Bd3
{[%clk 0:01:58.6]} 11... Qc7 {[%clk 0:02:40.3]} 12. c3 {[%clk 0:01:45.6]} 12...
Be7 {[%clk 0:02:38.9]} 13. f4 {[%clk 0:01:11]} 13... f5 {[%clk 0:02:30.5]} 14.
exf6 {[%clk 0:01:00.9]} 14... Nxf6 {[%clk 0:02:29.8]} 15. O-O {[%clk 0:00:57.3]}
15... d5 {[%clk 0:02:28.6]} 16. Ng5 {[%clk 0:00:55.1]} 16... h6 {[%clk
0:02:25.3]} 17. Nf3 {[%clk 0:00:53.3]} 17... Qb6+ {[%clk 0:02:18.9]} 18. Kh1
{[%clk 0:00:53.4]} 18... Qxb2 {[%clk 0:02:16.6]} 19. Rb1 {[%clk 0:00:45.4]}
19... Qxa2 {[%clk 0:02:11.1]} 20. Ne5 {[%clk 0:00:45.4]} 20... Bd7 {[%clk
0:01:54.4]} 21. Qe2 {[%clk 0:00:27.4]} 21... Bc8 {[%clk 0:01:24]} 22. Ra1 {[%clk
0:00:25.1]} 22... Qxa1 {[%clk 0:01:16.6]} 23. Rxa1 {[%clk 0:00:25]} 23... a5
{[%clk 0:01:16.2]} 24. Nxc6 {[%clk 0:00:24.1]} 24... Bc5 {[%clk 0:01:15.3]} 25.
Nd4 {[%clk 0:00:24]} 25... Re8 {[%clk 0:01:12]} 26. Bb5 {[%clk 0:00:20.9]} 26...
Re7 {[%clk 0:01:10.9]} 27. Qe5 {[%clk 0:00:20.7]} 27... Ne4 {[%clk 0:01:08]} 28.
Be3 {[%clk 0:00:17.7]} 28... Nxc3 {[%clk 0:01:06.7]} 29. Bd3 {[%clk 0:00:16.7]}
29... Bd7 {[%clk 0:01:00.2]} 30. Qh5 {[%clk 0:00:16.7]} 30... a4 {[%clk
0:00:58.8]} 31. Qg6 {[%clk 0:00:16.9]} 31... Ne4 {[%clk 0:00:57.7]} 32. Bxe4
{[%clk 0:00:16.5]} 32... dxe4 {[%clk 0:00:58.6]} 33. Qxe4 {[%clk 0:00:17.1]}
33... Ree8 {[%clk 0:00:58.9]} 34. Nf3 {[%clk 0:00:17.2]} 34... Be7 {[%clk
0:00:53.1]} 35. Bd4 {[%clk 0:00:17.1]} 35... a3 {[%clk 0:00:51.5]} 36. Ne5
{[%clk 0:00:17.4]} 36... Bb5 {[%clk 0:00:36.2]} 37. Ng6 {[%clk 0:00:17.5]} 37...
Bf8 {[%clk 0:00:29]} 38. f5 {[%clk 0:00:17.9]} 38... a2 {[%clk 0:00:25.3]} 39.
Nxf8 {[%clk 0:00:18]} 39... Kxf8 {[%clk 0:00:24.1]} 40. fxe6 {[%clk 0:00:18.6]}
40... Kg8 {[%clk 0:00:19.1]} 41. Qf5 {[%clk 0:00:18.4]} 41... Re7 {[%clk
0:00:18.4]} 42. Qxb5 {[%clk 0:00:18.1]} 42... Kh8 {[%clk 0:00:15.6]} 43. h3
{[%clk 0:00:17.9]} 43... Rxe6 {[%clk 0:00:15.7]} 44. Qb3 {[%clk 0:00:17.8]}
44... Rea6 {[%clk 0:00:14.5]} 45. Bb2 {[%clk 0:00:17.4]} 45... Kh7 {[%clk
0:00:11.2]} 46. Qc3 {[%clk 0:00:17.5]} 46... R8a7 {[%clk 0:00:10.3]} 47. Qc2+
{[%clk 0:00:17.8]} 47... Kg8 {[%clk 0:00:09.6]} 48. Qc4+ {[%clk 0:00:18]} 48...
Kh7 {[%clk 0:00:09.6]} 49. h4 {[%clk 0:00:18.3]} 49... Ra4 {[%clk 0:00:08.8]}
50. Qc2+ {[%clk 0:00:18.3]} 50... Kg8 {[%clk 0:00:09.1]} 51. g3 {[%clk 0:00:18]}
51... Rb4 {[%clk 0:00:03.8]} 52. h5 {[%clk 0:00:17.4]} 52... Rba4 {[%clk
0:00:02.2]} 53. Kh2 {[%clk 0:00:17.6]} 53... R4a5 {[%clk 0:00:02.2]} 54. g4
{[%clk 0:00:17]} 54... Ra4 {[%clk 0:00:02.7]} 55. Kh3 {[%clk 0:00:17.4]} 55...
R7a5 {[%clk 0:00:01.5]} 56. Qb3+ {[%clk 0:00:17.5]} 1-0

[Event "*** Titled Tuesday Blitz"]
[Site "Chess.com"]
[Date "2020.05.12"]
[Round "6"]
[White "Boninknights"]
[Black "AttilaTurzo"]
[Result "0-1"]
[WhiteElo "2248"]
[BlackElo "2480"]
[TimeControl "180+1"]
[EndTime "11:07:09 PDT"]
[Termination "AttilaTurzo won on time"]

1. d4 {[%clk 0:02:56.7]} 1... Nf6 {[%clk 0:02:59.2]} 2. Nf3 {[%clk 0:02:56.3]}
2... e6 {[%clk 0:02:59.3]} 3. c4 {[%clk 0:02:55.7]} 3... Bb4+ {[%clk 0:02:58.8]}
4. Bd2 {[%clk 0:02:54.4]} 4... Qe7 {[%clk 0:02:58.9]} 5. g3 {[%clk 0:02:52.8]}
5... Nc6 {[%clk 0:02:58.7]} 6. Bg2 {[%clk 0:02:52]} 6... Bxd2+ {[%clk
0:02:58.9]} 7. Nbxd2 {[%clk 0:02:51.3]} 7... d6 {[%clk 0:02:59.4]} 8. Nf1 {[%clk
0:02:50.6]} 8... e5 {[%clk 0:02:59.9]} 9. Ne3 {[%clk 0:02:50.2]} 9... O-O {[%clk
0:02:41.4]} 10. Nd5 {[%clk 0:02:43.3]} 10... Nxd5 {[%clk 0:02:38.8]} 11. cxd5
{[%clk 0:02:42.2]} 11... Nxd4 {[%clk 0:02:09]} 12. Nxd4 {[%clk 0:02:40]} 12...
exd4 {[%clk 0:02:09.9]} 13. Qxd4 {[%clk 0:02:38.8]} 13... Bd7 {[%clk 0:02:06.9]}
14. Rc1 {[%clk 0:02:33.9]} 14... Rfc8 {[%clk 0:02:01.3]} 15. O-O {[%clk
0:02:25]} 15... c5 {[%clk 0:01:57.1]} 16. dxc6 {[%clk 0:02:21.3]} 16... Bxc6
{[%clk 0:01:50.7]} 17. e3 {[%clk 0:02:15.5]} 17... Bxg2 {[%clk 0:01:43.3]} 18.
Kxg2 {[%clk 0:02:14.4]} 18... Rc6 {[%clk 0:01:43.4]} 19. Rxc6 {[%clk 0:02:07.6]}
19... bxc6 {[%clk 0:01:44.3]} 20. Rc1 {[%clk 0:02:00.5]} 20... Rc8 {[%clk
0:01:35.3]} 21. b4 {[%clk 0:01:55.6]} 21... c5 {[%clk 0:01:33.8]} 22. Qd5 {[%clk
0:01:53.6]} 22... Qc7 {[%clk 0:01:30.4]} 23. a4 {[%clk 0:01:48.6]} 23... c4
{[%clk 0:01:29.4]} 24. Rc3 {[%clk 0:01:44.8]} 24... g6 {[%clk 0:01:20]} 25. f4
{[%clk 0:01:39.4]} 25... Kg7 {[%clk 0:01:14.2]} 26. a5 {[%clk 0:01:36.1]} 26...
a6 {[%clk 0:01:10.7]} 27. e4 {[%clk 0:01:32.9]} 27... f6 {[%clk 0:00:59.9]} 28.
g4 {[%clk 0:01:27.5]} 28... Kf8 {[%clk 0:00:44.8]} 29. g5 {[%clk 0:01:22.9]}
29... fxg5 {[%clk 0:00:43.2]} 30. fxg5 {[%clk 0:01:22]} 30... Kg7 {[%clk
0:00:36]} 31. Qd4+ {[%clk 0:01:16.8]} 31... Kg8 {[%clk 0:00:34.6]} 32. h4 {[%clk
0:01:13.7]} 32... Qf7 {[%clk 0:00:28.9]} 33. Qd5 {[%clk 0:01:07.2]} 33... Kg7
{[%clk 0:00:19.8]} 34. Qxf7+ {[%clk 0:01:01.2]} 34... Kxf7 {[%clk 0:00:20]} 35.
Kf3 {[%clk 0:00:59.1]} 35... Ke6 {[%clk 0:00:20.4]} 36. Kf4 {[%clk 0:00:58.4]}
36... d5 {[%clk 0:00:20.6]} 37. exd5+ {[%clk 0:00:54.6]} 37... Kxd5 {[%clk
0:00:21.5]} 38. Ke3 {[%clk 0:00:51.8]} 38... Ke5 {[%clk 0:00:21.9]} 39. Rc1
{[%clk 0:00:46]} 39... Kd5 {[%clk 0:00:22]} 40. Kd2 {[%clk 0:00:41]} 40... Kd4
{[%clk 0:00:21.8]} 41. Rf1 {[%clk 0:00:39.1]} 41... Rb8 {[%clk 0:00:20.9]} 42.
Rf4+ {[%clk 0:00:33.9]} 42... Kd5 {[%clk 0:00:19.7]} 43. Kc3 {[%clk 0:00:32.8]}
43... Re8 {[%clk 0:00:18.3]} 44. Rd4+ {[%clk 0:00:30.6]} 44... Ke5 {[%clk
0:00:14.7]} 45. Kxc4 {[%clk 0:00:27.4]} 45... Rc8+ {[%clk 0:00:13.3]} 46. Kd3
{[%clk 0:00:26.4]} 46... Rf8 {[%clk 0:00:13.6]} 47. Rd7 {[%clk 0:00:23.3]} 47...
Rf3+ {[%clk 0:00:13.3]} 48. Kc2 {[%clk 0:00:22.2]} 48... Rf4 {[%clk 0:00:13.3]}
49. Rxh7 {[%clk 0:00:18.6]} 49... Rxb4 {[%clk 0:00:12.6]} 50. h5 {[%clk
0:00:13.8]} 50... gxh5 {[%clk 0:00:12]} 51. Rxh5 {[%clk 0:00:12.8]} 51... Kf5
{[%clk 0:00:12.4]} 52. Kc3 {[%clk 0:00:09.8]} 52... Rb5 {[%clk 0:00:12.3]} 53.
Rh6 {[%clk 0:00:08.1]} 53... Rxa5 {[%clk 0:00:12.4]} 54. g6 {[%clk 0:00:06.3]}
54... Kf6 {[%clk 0:00:12.2]} 55. Kb4 {[%clk 0:00:04.5]} 55... Ra1 {[%clk
0:00:12.2]} 56. g7+ {[%clk 0:00:01.7]} 56... Kxg7 {[%clk 0:00:12.3]} 0-1

[Event "*** Titled Tuesday Blitz"]
[Site "Chess.com"]
[Date "2020.05.12"]
[Round "6"]
[White "spela91"]
[Black "MacDaddyMac"]
[Result "1/2-1/2"]
[WhiteElo "2090"]
[BlackElo "2267"]
[TimeControl "180+1"]
[EndTime "11:07:10 PDT"]
[Termination "Game drawn by stalemate"]

1. d4 {[%clk 0:03:00.9]} 1... Nf6 {[%clk 0:02:59.5]} 2. c4 {[%clk 0:03:00.7]}
2... e6 {[%clk 0:03:00]} 3. Nc3 {[%clk 0:03:00.9]} 3... b6 {[%clk 0:03:00.1]} 4.
e4 {[%clk 0:02:56.8]} 4... Bb4 {[%clk 0:03:00.2]} 5. Bd3 {[%clk 0:02:55.6]} 5...
c5 {[%clk 0:02:59.9]} 6. d5 {[%clk 0:02:49.7]} 6... e5 {[%clk 0:02:58.9]} 7. Ne2
{[%clk 0:02:44.5]} 7... d6 {[%clk 0:02:58.9]} 8. a3 {[%clk 0:02:43]} 8... Bxc3+
{[%clk 0:02:58.2]} 9. Nxc3 {[%clk 0:02:43.9]} 9... Bd7 {[%clk 0:02:57.3]} 10.
O-O {[%clk 0:02:43.6]} 10... h6 {[%clk 0:02:56]} 11. f4 {[%clk 0:02:39.9]} 11...
Bg4 {[%clk 0:02:54.6]} 12. Be2 {[%clk 0:02:37.4]} 12... Bxe2 {[%clk 0:02:54.5]}
13. Qxe2 {[%clk 0:02:38.3]} 13... Nbd7 {[%clk 0:02:55]} 14. f5 {[%clk 0:02:32]}
14... a6 {[%clk 0:02:49.7]} 15. a4 {[%clk 0:02:31.9]} 15... h5 {[%clk
0:02:45.1]} 16. Bg5 {[%clk 0:02:16.9]} 16... Qe7 {[%clk 0:02:44.2]} 17. Ra3
{[%clk 0:01:40.9]} 17... Qf8 {[%clk 0:02:34.2]} 18. a5 {[%clk 0:01:31.8]} 18...
Qe7 {[%clk 0:01:45.1]} 19. axb6 {[%clk 0:01:11.7]} 19... Nxb6 {[%clk 0:01:38.3]}
20. Rfa1 {[%clk 0:01:12.2]} 20... Qb7 {[%clk 0:01:37.6]} 21. b3 {[%clk
0:00:52.1]} 21... Nfd7 {[%clk 0:01:32]} 22. Qa2 {[%clk 0:00:48.7]} 22... f6
{[%clk 0:01:29.8]} 23. Be3 {[%clk 0:00:44.7]} 23... Nb8 {[%clk 0:01:28.6]} 24.
Nb5 {[%clk 0:00:27.9]} 24... axb5 {[%clk 0:01:20.6]} 25. Rxa8 {[%clk 0:00:27.3]}
25... Nxa8 {[%clk 0:01:20.8]} 26. Qxa8 {[%clk 0:00:27.7]} 26... Qxa8 {[%clk
0:01:18.5]} 27. Rxa8 {[%clk 0:00:27.6]} 27... O-O {[%clk 0:01:18.7]} 28. cxb5
{[%clk 0:00:24.1]} 28... Nd7 {[%clk 0:01:18.1]} 29. Rxf8+ {[%clk 0:00:19.7]}
29... Kxf8 {[%clk 0:01:17.2]} 30. Bd2 {[%clk 0:00:20.4]} 30... Ke7 {[%clk
0:01:09.7]} 31. Ba5 {[%clk 0:00:20.3]} 31... Nf8 {[%clk 0:00:59.2]} 32. Kf2
{[%clk 0:00:19.2]} 32... Kd7 {[%clk 0:00:58.9]} 33. Ke3 {[%clk 0:00:18]} 33...
g6 {[%clk 0:00:49.4]} 34. fxg6 {[%clk 0:00:15.3]} 34... Nxg6 {[%clk 0:00:49.3]}
35. g3 {[%clk 0:00:16]} 35... Ne7 {[%clk 0:00:41.6]} 36. Kd3 {[%clk 0:00:15.7]}
36... f5 {[%clk 0:00:41.1]} 37. Ke3 {[%clk 0:00:08.7]} 37... fxe4 {[%clk
0:00:40.2]} 38. Kxe4 {[%clk 0:00:09]} 38... Ng8 {[%clk 0:00:20.4]} 39. Kf5
{[%clk 0:00:08.8]} 39... Ne7+ {[%clk 0:00:20.6]} 40. Kg5 {[%clk 0:00:05.1]}
40... Nxd5 {[%clk 0:00:21]} 41. Kxh5 {[%clk 0:00:04]} 41... e4 {[%clk
0:00:21.6]} 42. Kg4 {[%clk 0:00:02.1]} 42... e3 {[%clk 0:00:21.8]} 43. Kf3
{[%clk 0:00:02.1]} 43... Kc8 {[%clk 0:00:13.4]} 44. h4 {[%clk 0:00:02.3]} 44...
Kd7 {[%clk 0:00:13.8]} 45. g4 {[%clk 0:00:02.4]} 45... Kc8 {[%clk 0:00:13.1]}
46. h5 {[%clk 0:00:02.9]} 46... Kd7 {[%clk 0:00:13.5]} 47. h6 {[%clk 0:00:03.4]}
47... Nf6 {[%clk 0:00:11.7]} 48. g5 {[%clk 0:00:03.2]} 48... Ng8 {[%clk
0:00:05.3]} 49. h7 {[%clk 0:00:01.5]} 49... e2 {[%clk 0:00:06.2]} 50. Kxe2
{[%clk 0:00:01.6]} 50... Nf6 {[%clk 0:00:07.1]} 51. h8=Q {[%clk 0:00:01.4]}
51... d5 {[%clk 0:00:08]} 52. Qh7+ {[%clk 0:00:02]} 52... Ke6 {[%clk 0:00:08.3]}
53. Qg6 {[%clk 0:00:02]} 53... d4 {[%clk 0:00:06.3]} 54. Qxf6+ {[%clk
0:00:02.9]} 54... Kd5 {[%clk 0:00:06.7]} 55. b6 {[%clk 0:00:03.4]} 55... d3+
{[%clk 0:00:07.2]} 56. Kd2 {[%clk 0:00:03.2]} 56... c4 {[%clk 0:00:08.1]} 57.
bxc4+ {[%clk 0:00:03.5]} 57... Kc5 {[%clk 0:00:09]} 58. b7 {[%clk 0:00:03.9]}
58... Kxc4 {[%clk 0:00:07.2]} 59. Qc6+ {[%clk 0:00:04.1]} 59... Kd4 {[%clk
0:00:07.3]} 60. b8=Q {[%clk 0:00:03.2]} 1/2-1/2

[Event "*** Titled Tuesday Blitz"]
[Site "Chess.com"]
[Date "2020.05.12"]
[Round "6"]
[White "2L8IWUN"]
[Black "TheCount"]
[Result "1-0"]
[WhiteElo "2467"]
[BlackElo "2590"]
[TimeControl "180+1"]
[EndTime "11:07:11 PDT"]
[Termination "2L8IWUN won by resignation"]

1. Nf3 {[%clk 0:03:00.8]} 1... Nf6 {[%clk 0:02:59.5]} 2. c4 {[%clk 0:02:59.2]}
2... g6 {[%clk 0:02:58.7]} 3. g3 {[%clk 0:02:56.4]} 3... Bg7 {[%clk 0:02:58.6]}
4. Bg2 {[%clk 0:02:56.6]} 4... O-O {[%clk 0:02:59.2]} 5. O-O {[%clk 0:02:56.8]}
5... d5 {[%clk 0:02:58.1]} 6. d4 {[%clk 0:02:57.4]} 6... dxc4 {[%clk 0:02:54.6]}
7. Na3 {[%clk 0:02:57.4]} 7... c3 {[%clk 0:02:54.2]} 8. bxc3 {[%clk 0:02:57.4]}
8... c5 {[%clk 0:02:52.9]} 9. e3 {[%clk 0:02:58.2]} 9... Qb6 {[%clk 0:02:31.5]}
10. Qe2 {[%clk 0:02:58]} 10... Ne4 {[%clk 0:02:13.5]} 11. Bb2 {[%clk 0:02:45.6]}
11... Nc6 {[%clk 0:02:03.2]} 12. Rfd1 {[%clk 0:02:27.9]} 12... cxd4 {[%clk
0:01:29.2]} 13. cxd4 {[%clk 0:02:21.7]} 13... Be6 {[%clk 0:01:17.4]} 14. Ne5
{[%clk 0:02:04]} 14... Nxe5 {[%clk 0:00:59.1]} 15. dxe5 {[%clk 0:02:04.9]} 15...
Nc5 {[%clk 0:00:49.2]} 16. Bd4 {[%clk 0:02:03.8]} 16... Rac8 {[%clk 0:00:42.4]}
17. Rac1 {[%clk 0:01:59.7]} 17... Rfd8 {[%clk 0:00:26.2]} 18. Nc4 {[%clk
0:01:54.5]} 18... Qa6 {[%clk 0:00:22.6]} 19. f4 {[%clk 0:01:51.7]} 19... Na4
{[%clk 0:00:21.3]} 20. Bf1 {[%clk 0:01:49.6]} 20... b6 {[%clk 0:00:14.9]} 21. a3
{[%clk 0:01:36.5]} 21... Nc5 {[%clk 0:00:14.5]} 22. Qb2 {[%clk 0:01:32.2]} 22...
Qb7 {[%clk 0:00:12]} 23. Bg2 {[%clk 0:01:30.5]} 23... Bd5 {[%clk 0:00:12]} 24.
Bxc5 {[%clk 0:01:28.7]} 24... Bxg2 {[%clk 0:00:06.6]} 25. Rxd8+ {[%clk
0:01:26.1]} 25... Rxd8 {[%clk 0:00:04.9]} 26. Qxg2 {[%clk 0:01:27]} 26... Qxg2+
{[%clk 0:00:04]} 27. Kxg2 {[%clk 0:01:27.7]} 27... bxc5 {[%clk 0:00:04.6]} 28.
Rc2 {[%clk 0:01:03.4]} 28... e6 {[%clk 0:00:04.3]} 29. Nd6 {[%clk 0:01:01.5]}
29... Bf8 {[%clk 0:00:04.8]} 30. Ne4 {[%clk 0:00:58.8]} 30... Rd3 {[%clk
0:00:04.2]} 31. Rc3 {[%clk 0:00:56.7]} 31... Rxc3 {[%clk 0:00:03.5]} 32. Nxc3
{[%clk 0:00:57.6]} 32... c4 {[%clk 0:00:03.9]} 33. a4 {[%clk 0:00:53.3]} 33...
Bb4 {[%clk 0:00:03.9]} 34. Nb5 {[%clk 0:00:41.7]} 34... c3 {[%clk 0:00:03.1]}
35. Nd4 {[%clk 0:00:41.7]} 35... Bc5 {[%clk 0:00:03.7]} 36. Nc2 {[%clk
0:00:41.1]} 36... Kf8 {[%clk 0:00:04.1]} 37. Kf3 {[%clk 0:00:41.4]} 37... Ke7
{[%clk 0:00:04.5]} 38. Ke4 {[%clk 0:00:42.2]} 38... Kd7 {[%clk 0:00:04.8]} 39.
Kd3 {[%clk 0:00:42.9]} 39... Kc6 {[%clk 0:00:05.3]} 40. Kxc3 {[%clk 0:00:43.3]}
40... Kd5 {[%clk 0:00:04.6]} 41. Kd3 {[%clk 0:00:43.8]} 41... Kc6 {[%clk
0:00:03.1]} 42. Kc4 {[%clk 0:00:43.3]} 42... a5 {[%clk 0:00:02.4]} 43. Nd4+
{[%clk 0:00:42.2]} 43... Kb6 {[%clk 0:00:02.6]} 44. h3 {[%clk 0:00:40]} 44...
Bb4 {[%clk 0:00:02.7]} 45. g4 {[%clk 0:00:39.5]} 45... Bd2 {[%clk 0:00:02.5]}
46. Nc2 {[%clk 0:00:38.8]} 46... Bc1 {[%clk 0:00:02.8]} 47. h4 {[%clk
0:00:37.7]} 47... Kc6 {[%clk 0:00:03.1]} 48. h5 {[%clk 0:00:37.8]} 48... gxh5
{[%clk 0:00:03.3]} 49. gxh5 {[%clk 0:00:38.7]} 49... h6 {[%clk 0:00:03.1]} 50.
Nd4+ {[%clk 0:00:28]} 50... Kb6 {[%clk 0:00:03.4]} 51. Nc2 {[%clk 0:00:28.4]}
51... Kc6 {[%clk 0:00:03.7]} 52. Nd4+ {[%clk 0:00:19.1]} 52... Kb6 {[%clk
0:00:03.5]} 53. Kd3 {[%clk 0:00:18]} 53... Kc5 {[%clk 0:00:03.3]} 54. Nb3+
{[%clk 0:00:18.5]} 54... Kb4 {[%clk 0:00:03.4]} 55. Nxc1 {[%clk 0:00:19.4]}
55... Kxa4 {[%clk 0:00:04.2]} 56. Kc4 {[%clk 0:00:19.5]} 56... Ka3 {[%clk
0:00:04.7]} 57. e4 {[%clk 0:00:20.2]} 57... a4 {[%clk 0:00:04.8]} 58. Nd3 {[%clk
0:00:20.6]} 58... Ka2 {[%clk 0:00:04.6]} 59. Kc3 {[%clk 0:00:21.2]} 59... Ka3
{[%clk 0:00:04]} 60. Nb2 {[%clk 0:00:21.2]} 60... Ka2 {[%clk 0:00:01.4]} 61.
Nxa4 {[%clk 0:00:21.4]} 61... Kb1 {[%clk 0:00:02.3]} 62. Nc5 {[%clk 0:00:22.2]}
62... Kc1 {[%clk 0:00:03.2]} 63. f5 {[%clk 0:00:22.4]} 1-0